bitfinex/quotes_ETHUSD_20251017
["timestamp","ask_amount","ask_price","bid_price","bid_amount"]
[1760693922518,2.65237936,3770.2,3769.5,2.65286062]
[1760693922728,2.87733174,3770.3,3769.6,2.65279584]
[1760693923216,0.225,3770.3,3769.2,0.132]
[1760693923418,0.04623694,3770.4,3769.7,2.65267345]
[1760693923620,2.69847748,3770.4,3769.7,2.65267345]
[1760693923922,2.65216814,3770.5,3769.7,2.6527148]
[1760693924218,2.65216814,3770.5,3769.8,2.6526531]
[1760693924621,6.47,3770.8,3769.9,2.65257402]
[1760693924819,2.65211332,3770.6,3769.8,2.65263611]
[1760693925124,6.47,3770.8,3769.8,1.24904298]
[1760693925302,6.47,3770.8,3770.3,2.6522594]
[1760693925505,2.87174577,3771.2,3770.5,2.6521036]
[1760693925811,2.87150148,3771.5,3770.7,2.65197644]
[1760693926005,2.87150148,3771.5,3770.7,2.65202747]
[1760693926006,0.22,3771.5,3770.7,2.65202747]
[1760693926210,2.65159116,3771.4,3770.7,2.65202747]
[1760693926414,2.87147767,3771.5,3770.8,2.65194482]
[1760693926600,2.65154562,3771.4,3770.7,2.65200867]
[1760693926929,9.12133054,3771.7,3770.9,2.65183952]
[1760693926930,6.47,3771.7,3770.9,2.65183952]
[1760693927139,2.6513921,3771.7,3770.9,2.65188214]
[1760693927319,2.65140639,3771.6,3770.7,3.21669549]
[1760693927521,0.1646,3771.9,3770.7,0.59119114]
[1760693927737,0.1398,3772.8,3771.3,0.132]
[1760693927907,0.1398,3772.8,3771.4,2.9947]
[1760693927908,0.2242,3772.6,3771.4,2.9947]
[1760693928236,0.2197,3772.9,3771.5,0.4412]
[1760693928536,0.1415,3773.8,3771.8,2.65125404]
[1760693928772,0.2196,3775.0,3772.8,1.9507]
[1760693928949,2.64933825,3774.6,3773.7,2.87259976]
[1760693929243,0.2233,3775.2,3773.8,2.772]
[1760693929546,2.8721886,3775.2,3774.1,0.132]
[1760693929762,0.225,3774.9,3773.8,3.2132]
[1760693930032,0.225,3774.9,3773.4,0.2227]
[1760693930033,1.79841481,3774.4,3773.4,0.2227]
[1760693930239,1.79841481,3774.4,3772.8,0.2227]
[1760693930240,2.64970853,3774.0,3773.5,0.821]
[1760693930441,0.361,3773.9,3773.5,2.772]
[1760693930600,2.64999021,3773.6,3773.3,2.772]
[1760693930803,0.26499902,3773.5,3773.3,2.772]
[1760693931017,2.64973457,3774.0,3773.3,2.772]
[1760693931230,2.64985075,3773.8,3773.3,2.772]
[1760693931431,2.64993518,3773.7,3773.3,2.772]
[1760693931630,2.64990599,3773.8,3773.3,2.772]
[1760693932034,1.79841481,3774.4,3773.4,0.4661]
[1760693932240,1.63492255,3774.4,3773.4,0.45581]
[1760693932632,2.64957428,3774.2,3773.4,0.132]
[1760693932834,2.64957428,3774.2,3773.4,2.78211324]
[1760693933138,2.64957428,3774.2,3773.5,2.65004833]
[1760693933343,1.63492255,3774.4,3773.6,2.67648696]
[1760693933529,1.63492255,3774.4,3773.7,0.2164]
[1760693933734,1.8202348,3774.4,3773.6,2.772]
[1760693933915,1.8202348,3774.4,3773.5,2.772]
[1760693934122,2.64964938,3774.1,3773.5,2.772]
[1760693934430,1.8202348,3774.4,3773.5,2.772]
[1760693934627,0.1488,3774.3,3773.5,2.772]
[1760693934827,2.65046353,3773.0,3772.1,0.4661]
[1760693935028,0.2189,3772.9,3771.5,0.4661]
[1760693935333,2.6508405,3772.4,3771.6,2.774]
[1760693935534,0.1503,3772.8,3771.6,2.774]
[1760693935737,0.6336,3773.4,3771.6,2.774]
[1760693935738,0.2182,3773.6,3772.7,0.2164]
[1760693936059,0.2182,3773.6,3772.3,2.774]
[1760693936060,2.65050906,3772.9,3772.3,2.774]
[1760693936222,2.65088623,3772.4,3771.4,0.2227]
[1760693936424,0.3692,3772.8,3771.5,0.4661]
[1760693936743,2.65088428,3772.4,3771.5,0.4661]
[1760693937045,0.3692,3772.8,3771.4,0.2227]
[1760693937343,2.6507193,3772.6,3771.8,2.65125166]
[1760693937513,2.65068751,3772.7,3771.8,2.65124648]
[1760693937715,0.2183,3772.9,3771.8,0.26512465]
[1760693938042,28.10070871,3774.4,3771.4,0.2227]
[1760693938043,1.63492255,3774.4,3772.8,26.49687391]
[1760693938207,1.63492255,3774.4,3773.1,1.728]
[1760693938409,1.63492255,3774.4,3772.9,2.793]
[1760693938612,3.01429792,3774.3,3772.9,2.793]
[1760693938852,2.64973022,3774.0,3772.9,2.793]
[1760693939053,3.12449639,3773.9,3772.9,2.793]
[1760693939349,2.65012386,3773.5,3772.9,2.793]
[1760693939534,2.65012386,3773.5,3772.7,2.65060314]
[1760693939535,0.3623,3773.5,3772.0,0.2164]
[1760693939740,2.65057456,3772.8,3772.0,2.86746023]
[1760693940136,0.1124,3772.9,3772.2,2.65091127]
[1760693940339,2.65056605,3772.8,3772.3,0.28673113]
[1760693940655,3.01035131,3772.8,3772.0,0.2164]
[1760693940952,2.65069183,3772.6,3771.8,2.793]
[1760693941152,0.3598,3773.7,3772.5,0.2164]
[1760693941449,0.3574,3774.2,3772.7,2.65062157]
[1760693941658,0.04619521,3773.5,3773.4,2.65008168]
[1760693941876,0.04619521,3773.5,3773.3,0.2362]
[1760693942020,2.64956248,3774.3,3773.5,2.65001659]
[1760693942314,2.64956248,3774.3,3773.3,2.88639363]
[1760693942315,1.63492255,3774.4,3773.4,0.02650129]
[1760693942520,1.63492255,3774.4,3774.3,2.88569792]
[1760693942758,1.63492255,3774.4,3774.3,3.43923071]
[1760693942940,1.63492255,3774.4,3774.3,3.91313071]
[1760693943145,1.63412255,3774.4,3774.3,3.91313071]
[1760693943443,1.63412255,3774.4,3774.3,7.76113071]
[1760693943620,1.63412255,3774.4,3774.3,5.77313071]
[1760693944333,1.63412255,3774.4,3774.3,7.89313071]
[1760693944544,1.63412255,3774.4,3774.3,8.41250371]
[1760693944743,1.63412255,3774.4,3774.3,10.56913071]
[1760693945056,1e-08,3774.4,3774.3,10.56913071]
[1760693947968,1e-08,3774.4,3774.3,7.72203071]
[1760693948167,1e-08,3774.4,3773.5,26.28047391]
[1760693948342,1e-08,3774.4,3773.6,2.792]
[1760693948546,1e-08,3774.4,3773.9,2.64977221]
[1760693948744,1e-08,3774.4,3774.3,2.64949792]
[1760693948943,1e-08,3774.4,3774.3,5.44149792]
[1760693949168,1e-08,3774.4,3774.3,6.25061]
[1760693949339,1e-08,3774.4,3774.3,2.792]
[1760693949769,0.43390001,3774.4,3774.3,2.792]
[1760693949937,1e-08,3774.4,3774.3,2.792]
[1760693950233,1e-08,3774.4,3774.3,5.44149792]
[1760693950439,1e-08,3774.4,3774.3,2.792]
[1760693950657,3.08332773,3774.4,3774.0,0.1]
[1760693950958,0.74223277,3774.3,3774.0,0.1]
[1760693951163,1e-08,3774.4,3774.0,0.1]
[1760693951365,1e-08,3774.4,3774.0,2.74970209]
[1760693951559,1e-08,3774.4,3774.0,0.1]
[1760693951783,0.4339,3774.3,3774.0,0.1]
[1760693951951,1e-08,3774.4,3774.0,0.1]
[1760693952341,1e-08,3774.4,3774.1,2.791]
[1760693952549,1e-08,3774.4,3774.3,2.64949792]
[1760693952887,1e-08,3774.4,3774.3,4.37749792]
[1760693953438,1e-08,3774.4,3774.3,2.64949792]
[1760693953739,1e-08,3774.4,3774.1,0.2891]
[1760693953969,1e-08,3774.4,3774.3,2.64949792]
[1760693954501,1e-08,3774.4,3774.2,2.791]
[1760693954502,0.43390001,3774.4,3774.2,2.791]
[1760693954803,1e-08,3774.4,3774.3,2.64949792]
[1760693955011,1e-08,3774.4,3774.2,5.44056437]
[1760693955215,1e-08,3774.4,3774.2,2.791]
[1760693955515,0.4339,3774.3,3774.2,2.791]
[1760693955879,1e-08,3774.4,3774.2,2.791]
[1760693956080,1e-08,3774.4,3774.3,2.67599289]
[1760693956390,1e-08,3774.4,3774.2,3.34506431]
[1760693956570,1e-08,3774.4,3774.2,2.791]
[1760693957199,1e-08,3774.4,3774.3,2.64949792]
[1760693957419,1e-08,3774.4,3774.2,2.791]
[1760693958072,3.08509792,3774.3,3774.0,0.1]
[1760693958322,3.08519788,3774.2,3774.0,0.1]
[1760693958500,1e-08,3774.4,3774.0,0.1]
[1760693958501,0.4356,3774.1,3774.0,0.1]
[1760693959369,3.08523832,3774.1,3774.0,0.1]
[1760693959565,3.65871234,3774.1,3774.0,0.1]
[1760693959780,1.00907402,3774.1,3774.0,0.1]
[1760693959996,0.4356,3774.1,3774.0,0.1]
[1760693960207,0.04619116,3774.1,3774.0,0.1]
[1760693960402,3.13142948,3774.1,3774.0,0.1]
[1760693960566,0.48179116,3774.1,3774.0,0.086157]
[1760693960770,3.13142948,3774.1,3774.0,0.086157]
[1760693960990,0.4356,3774.1,3774.0,0.086157]
[1760693961191,1e-08,3774.4,3774.0,0.086157]
[1760693961372,1e-08,3774.4,3774.3,2.64949792]
[1760693961572,1e-08,3774.4,3774.0,0.086157]
[1760693961971,0.4334,3774.3,3774.0,0.086157]
[1760693962168,2.64963832,3774.1,3774.0,0.086157]
[1760693962404,3.65629195,3774.1,3774.0,0.086157]
[1760693962568,1.00665363,3774.1,3774.0,0.086157]
[1760693962773,3.08303832,3774.1,3774.0,0.086157]
[1760693963509,1e-08,3774.4,3774.0,0.086157]
[1760693963813,0.4334,3774.3,3774.0,0.086157]
[1760693964014,0.4334,3774.2,3774.0,0.086157]
[1760693964214,3.08303832,3774.1,3774.0,0.086157]
[1760693964397,3.65629684,3774.1,3774.0,0.086157]
[1760693964772,3.65629684,3774.1,3774.0,0.087157]
[1760693965914,3.70249314,3774.1,3774.0,0.087157]
[1760693966698,3.65629684,3774.1,3774.0,0.087157]
[1760693966908,3.65549684,3774.1,3774.0,0.087157]
[1760693967410,0.57325852,3774.1,3774.0,0.087157]
[1760693967602,2.64963832,3774.1,3774.0,0.087157]
[1760693968926,2.64963832,3774.1,3772.0,2.8872954]
[1760693968927,2.1606,3774.1,3770.8,1.53031911]
[1760693969132,0.6336,3773.7,3771.8,2.65123983]
[1760693969288,2.65005962,3773.5,3771.3,0.4702]
[1760693969610,0.18570627,3773.6,3771.5,0.80465317]
[1760693969809,0.18570627,3773.6,3772.3,2.65085059]
[1760693970000,0.18570627,3773.6,3772.9,2.65041505]
[1760693970001,0.04620627,3773.6,3772.9,2.65041505]
[1760693970318,0.04620627,3773.6,3772.6,2.65064365]
[1760693970319,2.6501217,3773.5,3772.6,2.65064365]
[1760693970617,0.04620627,3773.6,3772.4,0.2288]
[1760693970618,0.50020627,3773.6,3772.4,0.2288]
[1760693970817,2.65005962,3773.5,3772.3,2.784]
[1760693971022,2.96516007,3773.4,3772.4,2.65076698]
[1760693971208,2.65028653,3773.2,3772.4,2.65076698]
[1760693971406,0.31502659,3773.4,3772.3,2.784]
[1760693971594,0.1653,3774.0,3772.3,2.784]
[1760693971595,2.65030386,3773.2,3772.3,2.784]
[1760693971806,0.04620218,3773.2,3772.3,2.784]
[1760693972004,2.65057142,3772.8,3772.0,2.65105499]
[1760693972226,2.65067328,3772.7,3772.0,2.65105499]
[1760693972523,2.65042563,3773.0,3772.3,2.6508445]
[1760693972922,0.53469088,3773.0,3772.1,0.2288]
[1760693973123,2.78998953,3772.9,3772.2,2.65097156]
[1760693973328,2.65048665,3772.9,3772.2,2.65097156]
[1760693973821,1.6421,3775.8,3772.3,0.4702]
[1760693973822,0.4603,3774.3,3772.3,0.4702]
[1760693974124,0.4603,3774.3,3772.2,0.132]
[1760693974125,0.4571,3773.9,3772.2,0.132]
[1760693974325,2.65063977,3772.7,3771.9,2.65112886]
[1760693974491,2.65084882,3772.4,3771.8,0.132]
[1760693974690,0.1426,3772.8,3771.8,2.65123141]
[1760693974691,2.65076553,3772.5,3771.8,2.65123141]
[1760693974906,0.1426,3772.8,3771.6,0.62]
[1760693975106,0.454,3772.7,3771.1,0.2288]
[1760693975322,2.65101985,3772.2,3771.1,0.2288]
[1760693975624,0.454,3772.7,3771.4,2.65148442]
[1760693975804,2.65102433,3772.2,3771.5,2.65145022]
[1760693976000,0.32471198,3772.6,3771.1,0.2288]
[1760693976001,2.65116344,3772.0,3771.1,0.2288]
[1760693976191,0.0521,3771.9,3771.1,0.2288]
[1760693976398,0.0521,3771.9,3770.8,1.488]
[1760693976399,2.6515837,3771.4,3770.8,1.488]
[1760693976595,0.45,3771.6,3770.3,0.2288]
[1760693976910,2.6517796,3771.1,3770.3,0.2288]
[1760693977110,2.65173438,3771.2,3770.4,2.65220518]
[1760693977425,2.65162324,3771.3,3770.3,3.36291782]
[1760693977724,2.65152618,3771.5,3770.7,2.65200553]
[1760693977939,2.65152618,3771.5,3770.8,2.65194384]
[1760693978092,0.45,3771.7,3770.4,0.4702]
[1760693978296,0.45,3771.7,3770.0,0.2288]
[1760693978523,1.728,3771.5,3770.0,0.2288]
[1760693978723,0.49622678,3771.4,3770.0,0.2288]
[1760693978895,0.49622678,3771.4,3769.8,0.4712]
[1760693978896,0.49622678,3771.4,3769.9,2.65259025]
[1760693979091,2.65160554,3771.3,3770.1,0.2288]
[1760693979331,2.65211328,3770.6,3769.8,0.4712]
[1760693979528,2.65211328,3770.6,3769.9,2.65254373]
[1760693979690,0.76478323,3771.2,3769.8,0.4712]
[1760693979894,0.04622678,3771.4,3769.9,0.0265259]
[1760693980145,0.4746,3771.9,3770.8,2.65190199]
[1760693980321,0.52082566,3771.9,3771.0,2.65175435]
[1760693980506,0.52082566,3771.9,3770.9,0.2288]
[1760693980507,2.65144663,3771.6,3770.9,2.88066568]
[1760693980717,0.09832566,3771.9,3770.9,2.88067871]
[1760693980903,0.04622566,3771.9,3770.9,0.56653983]
[1760693981106,0.4603,3773.0,3771.8,0.2288]
[1760693981306,0.3998,3773.5,3771.8,0.2288]
[1760693981507,0.3998,3773.5,3771.9,2.65111871]
[1760693981508,2.65048652,3772.9,3771.9,2.65111871]
[1760693981836,0.0462147,3773.0,3772.3,2.65089553]
[1760693982037,0.38095859,3773.0,3771.8,0.699]
[1760693982222,0.38095859,3773.0,3771.5,2.784]
[1760693982223,0.4595,3772.9,3771.5,2.784]
[1760693982405,2.65096134,3772.3,3771.6,2.65137319]
[1760693982738,0.2418,3772.8,3771.2,3.2542]
[1760693983038,2.6510635,3772.1,3771.4,2.65148702]
[1760693983236,0.04621309,3772.6,3771.3,2.65158781]
[1760693983396,1.9186,3773.3,3772.0,2.65105504]
[1760693983397,0.1906,3773.3,3772.0,2.65105504]
[1760693983596,0.1906,3773.3,3771.4,2.65153523]
[1760693983597,2.65027032,3773.2,3771.4,2.65153523]
[1760693983802,2.65094783,3772.3,3771.3,2.65160554]
[1760693984031,0.2177,3772.5,3771.2,2.784]
[1760693984348,2.65131173,3771.8,3771.2,2.784]
[1760693984646,2.65151985,3771.5,3770.9,0.699]
[1760693984851,0.2177,3772.5,3770.9,0.2288]
[1760693985004,0.41227,3772.5,3771.0,0.4702]
[1760693985205,2.65111076,3772.1,3771.3,2.65158091]
[1760693985445,2.65100324,3772.2,3771.1,2.65168049]
[1760693985611,2.65123082,3771.9,3771.0,0.4702]
[1760693985811,2.65123082,3771.9,3771.2,2.65162433]
[1760693986011,2.65123082,3771.9,3771.3,2.65160104]
[1760693986214,2.65123082,3771.9,3771.2,2.65165032]
[1760693986409,0.2177,3772.5,3771.0,0.4702]
[1760693986613,2.65144396,3771.6,3770.9,2.88063251]
[1760693986817,2.65133428,3771.7,3771.0,2.651816]
[1760693987331,2.65133428,3771.7,3771.0,0.4702]
[1760693987533,2.65139474,3771.6,3770.9,0.2288]
[1760693987734,0.2174,3771.9,3770.6,2.783]
[1760693988041,2.69727414,3772.1,3771.8,0.2288]
[1760693988226,2.69727414,3772.1,3771.6,0.2288]
[1760693988227,0.04621713,3772.1,3771.6,0.2288]
[1760693988542,2.65111346,3772.0,3771.3,3.12178614]
[1760693988724,2.65137418,3771.7,3771.2,0.2288]
[1760693988907,0.04621713,3772.1,3771.2,0.2288]
[1760693989244,2.65123958,3771.9,3771.3,2.65158442]
[1760693989535,0.04621713,3772.1,3771.2,0.699]
[1760693990035,0.2177,3772.5,3771.3,3.2512]
[1760693990248,2.65097891,3772.2,3771.5,2.65140986]
[1760693990538,0.1838,3772.3,3771.3,2.781]
[1760693990721,0.1838,3772.3,3771.2,0.2288]
[1760693991127,2.65083236,3772.4,3771.2,0.699]
[1760693991324,2.9423069,3772.4,3771.4,2.65147081]
[1760693991536,2.6510509,3772.1,3771.2,3.35064005]
[1760693991754,2.94236947,3772.4,3771.2,3.35066344]
[1760693991913,2.6510617,3772.1,3771.4,2.65147013]
[1760693992234,2.94234696,3772.4,3771.2,0.2288]
[1760693992436,0.320626,3772.3,3771.2,0.6751]
[1760693992657,0.26391304,3772.5,3771.2,0.6751]
[1760693992658,0.26391304,3772.5,3771.5,2.65143929]
[1760693992951,2.65052726,3772.9,3771.6,0.4463]
[1760693992952,0.2297,3772.9,3771.6,0.4463]
[1760693993110,0.04620935,3772.8,3771.6,0.4463]
[1760693993306,0.04620935,3772.8,3771.8,2.65125404]
[1760693993503,0.1725,3773.8,3772.5,2.65072262]
[1760693993854,0.1725,3773.5,3772.1,0.2212]
[1760693994006,2.65002874,3773.6,3771.9,3.09747545]
[1760693994007,0.1725,3773.2,3771.9,0.4463]
[1760693994203,0.47412632,3773.1,3771.8,0.2212]
[1760693994435,0.47412632,3773.1,3771.5,3.3573]
[1760693994436,2.65089794,3772.4,3771.5,3.2253]
[1760693994745,2.65089794,3772.4,3771.5,5.87675552]
[1760693994746,2.65085689,3772.4,3771.5,5.87675552]
[1760693995043,2.65116102,3772.0,3771.5,2.779]
[1760693995339,2.65154189,3771.4,3770.5,0.4463]
[1760693995539,2.65163875,3771.3,3770.6,2.65207528]
[1760693995749,2.65155013,3771.4,3770.7,2.65201238]
[1760693995955,2.65155013,3771.4,3770.0,2.88128593]
[1760693995956,0.1735,3771.6,3770.1,0.4463]
[1760693996119,2.65198859,3770.8,3770.0,0.2288]
[1760693996319,2.65168286,3771.2,3770.1,2.65240083]
[1760693996542,0.22012552,3771.3,3770.2,2.65236881]
[1760693996708,0.22012552,3771.3,3770.2,2.65237918]
[1760693996910,0.04622552,3771.3,3770.3,0.4463]
[1760693997129,2.65167738,3771.2,3770.4,2.65217331]
[1760693997349,0.1743,3771.2,3770.2,0.132]
[1760693997507,2.6518577,3771.0,3770.1,2.65244171]
[1760693997707,2.65189617,3770.9,3770.2,2.65232779]
[1760693997936,2.65196173,3770.8,3770.2,2.65232779]
[1760693998140,0.1743,3771.2,3770.0,0.6751]
[1760693998638,2.65208642,3770.7,3770.0,3.32761607]
[1760693998841,0.2164,3770.8,3770.0,0.6751]
[1760693999010,2.65203509,3770.7,3770.0,3.32755783]
[1760693999210,2.65192501,3770.9,3770.2,2.65236621]
[1760693999522,2.65189125,3770.9,3770.1,2.65238064]
[1760693999716,2.65189125,3770.9,3770.0,3.32761697]
[1760693999717,2.65195714,3770.8,3770.0,3.32761697]
[1760693999909,0.2297,3770.9,3770.0,0.6751]
[1760694000106,2.88165249,3770.9,3770.0,0.2298]
[1760694000460,2.6523852,3770.2,3770.0,0.001]
[1760694000746,2.65227002,3770.4,3770.0,0.001]
[1760694001128,2.65231413,3770.3,3770.0,0.001]
[1760694001440,2.65244953,3770.1,3770.0,0.001]
[1760694001609,0.1616,3770.6,3770.0,0.001]
[1760694001810,2.65244953,3770.1,3770.0,0.001]
[1760694002054,0.31480301,3770.5,3770.0,0.001]
[1760694002055,2.96697901,3770.5,3770.0,0.001]
[1760694002259,0.31480301,3770.5,3770.0,0.001]
[1760694002564,0.04623253,3770.7,3770.0,0.001]
[1760694002787,2.65244953,3770.1,3770.0,0.001]
[1760694003285,0.04623253,3770.7,3770.0,0.001]
[1760694003286,0.1616,3770.6,3770.0,0.001]
[1760694003485,2.65244953,3770.1,3770.0,0.001]
[1760694003780,3.1875497,3770.1,3770.0,0.001]
[1760694003979,2.65244953,3770.1,3770.0,0.001]
[1760694004149,2.81404953,3770.1,3770.0,0.001]
[1760694004362,2.65244953,3770.1,3770.0,0.001]
[1760694004766,2.81404953,3770.1,3770.0,0.001]
[1760694005171,5.17564953,3770.1,3770.0,0.001]
[1760694005353,5.95844576,3770.1,3770.0,0.001]
[1760694005763,10.60666376,3770.1,3770.0,0.001]
[1760694005994,3.28640135,3769.6,3769.5,1e-08]
[1760694006155,29.84610324,3769.6,3769.5,1e-08]
[1760694006358,2.65413912,3767.7,3767.1,0.2361]
[1760694006548,2.6533613,3768.9,3767.2,2.65547146]
[1760694006549,2.6539393,3768.0,3767.2,2.65547146]
[1760694006743,2.65413912,3767.7,3767.2,0.001]
[1760694006959,0.605,3767.9,3767.2,0.001]
[1760694007194,2.65407875,3767.8,3767.2,0.001]
[1760694007495,2.65413912,3767.7,3767.2,0.001]
[1760694007798,0.71690429,3767.8,3767.2,0.001]
[1760694007799,0.55260429,3767.8,3767.2,0.001]
[1760694007998,2.65413912,3767.7,3767.2,0.001]
[1760694008295,2.81843912,3767.7,3767.2,0.001]
[1760694008785,2.70027145,3767.9,3767.2,0.001]
[1760694008943,2.65413912,3767.7,3767.2,0.001]
[1760694009368,2.81843912,3767.7,3767.2,0.001]
[1760694009572,3.37030985,3767.7,3767.2,0.001]
[1760694010159,0.71617073,3767.7,3767.2,0.001]
[1760694010403,2.65407114,3767.8,3767.2,0.001]
[1760694010617,0.0462698,3767.9,3767.2,0.001]
[1760694011194,2.65413912,3767.7,3767.2,0.001]
[1760694011816,2.65407541,3767.8,3767.2,0.001]
[1760694012195,0.0462698,3767.9,3767.2,0.001]
[1760694012410,0.33276957,3767.9,3767.2,2.65549024]
[1760694012608,0.33276957,3767.9,3767.2,0.001]
[1760694012809,2.700297,3767.9,3767.2,0.001]
[1760694013032,0.0462698,3767.9,3767.2,0.001]
[1760694013334,2.65413912,3767.7,3767.2,0.001]
[1760694014132,2.81893912,3767.7,3767.2,0.001]
[1760694014321,2.65333912,3767.7,3767.2,0.001]
[1760694014521,3.18870062,3767.7,3767.2,0.001]
[1760694014722,3.35350062,3767.7,3767.2,0.001]
[1760694015955,3.18870062,3767.7,3767.2,0.001]
[1760694016544,3.35350062,3767.7,3767.2,0.001]
[1760694017052,5.08150062,3767.7,3767.2,0.001]
[1760694017254,5.76137278,3767.7,3767.2,0.001]
[1760694017956,5.12777278,3767.7,3767.2,0.001]
[1760694018153,5.76137278,3767.7,3767.2,0.001]
[1760694018542,7.92127978,3767.7,3767.2,0.001]
[1760694019167,5.76137278,3767.7,3767.2,0.001]
[1760694020824,16.57680978,3767.7,3767.2,0.001]
[1760694021027,9.16182078,3767.7,3767.2,0.001]
[1760694021862,16.58946478,3767.7,3767.2,0.001]
[1760694022162,3.28802093,3767.3,3767.2,0.001]
[1760694022365,37.00293282,3767.3,3767.2,0.001]
[1760694022554,37.16763282,3767.3,3767.2,0.001]
[1760694022750,12.2530788,3766.9,3766.8,0.001]
[1760694022939,13.1061788,3766.9,3766.8,0.001]
[1760694023143,11.54591443,3766.9,3766.8,0.001]
[1760694023344,11.4886272,3766.9,3766.8,0.001]
[1760694023864,5.8317762,3766.9,3766.8,0.001]
[1760694024174,13.8361022,3766.9,3766.8,0.001]
[1760694024476,12.9955342,3766.9,3766.8,0.001]
[1760694024964,5.8317762,3766.9,3766.8,0.001]
[1760694025174,10.3340032,3766.9,3766.8,0.001]
[1760694025962,10.38029723,3766.9,3766.8,0.001]
[1760694026130,3.28893722,3766.0,3765.9,0.001]
[1760694026334,5.34583094,3766.0,3765.9,0.001]
[1760694026526,5.34583094,3766.0,3764.3,0.2272]
[1760694026527,8.52703325,3765.8,3764.3,0.2272]
[1760694026778,5.01707825,3765.8,3764.5,0.4571]
[1760694026978,5.19427825,3765.8,3764.5,0.4571]
[1760694027135,12.03625125,3765.8,3764.3,0.2272]
[1760694027327,13.02551526,3765.8,3764.0,0.001]
[1760694027632,23.61272926,3765.8,3764.0,0.001]
[1760694028149,2.65660698,3764.2,3764.0,0.001]
[1760694028581,4.38460698,3764.2,3764.0,0.001]
[1760694029105,4.38460698,3764.2,3764.1,0.4581]
[1760694029996,4.43091688,3764.2,3764.1,0.4581]
[1760694032278,2.70291688,3764.2,3764.1,0.4581]
[1760694032668,2.70291688,3764.2,3764.1,0.001]
[1760694033434,0.0463099,3764.2,3764.1,0.4581]
[1760694033834,2.70291688,3764.2,3764.1,0.4581]
[1760694034057,0.0463099,3764.2,3764.1,0.4581]
[1760694034898,2.65653604,3764.4,3764.1,0.4581]
[1760694035202,0.6336,3765.3,3764.2,0.4571]
[1760694035432,1.728,3764.9,3764.2,0.4571]
[1760694035610,2.65653136,3764.4,3764.2,0.4571]
[1760694035811,2.65653136,3764.4,3764.3,0.4571]
[1760694036051,2.65653136,3764.4,3764.1,0.001]
[1760694036052,2.65660698,3764.2,3764.1,0.001]
[1760694038000,2.65580698,3764.2,3764.1,0.001]
[1760694038209,3.19167156,3764.2,3764.1,0.001]
[1760694038697,3.82527156,3764.2,3764.1,0.001]
[1760694038899,5.71627156,3764.2,3764.1,0.001]
[1760694042632,5.76259541,3764.2,3764.1,0.001]
[1760694043033,10.74355531,3763.8,3763.7,0.001]
[1760694043246,3.29099774,3763.1,3762.0,0.2272]
[1760694043397,0.6336,3763.5,3762.1,0.4571]
[1760694043607,1.728,3762.5,3762.1,0.4571]
[1760694043839,2.65781954,3762.5,3762.2,0.4571]
[1760694044045,1.728,3762.5,3762.0,0.2272]
[1760694044265,1.728,3762.5,3762.2,0.4571]
[1760694044445,1.728,3762.5,3762.3,0.4571]
[1760694044633,4.38587795,3762.4,3762.3,0.4571]
[1760694044833,1.728,3762.4,3762.3,0.4571]
[1760694045030,4.38587795,3762.4,3762.3,0.4571]
[1760694045236,2.65797539,3762.3,3762.0,0.2272]
[1760694045637,1.728,3762.3,3762.1,0.4571]
[1760694045956,0.6336,3762.8,3762.2,0.4571]
[1760694046157,0.2184,3763.3,3762.2,0.4571]
[1760694046158,0.6336,3763.2,3762.2,0.4571]
[1760694046342,2.65794859,3762.3,3762.2,0.4571]
[1760694046657,1.728,3762.6,3762.0,0.2272]
[1760694046957,2.6578907,3762.4,3762.1,0.4571]
[1760694047157,0.04633238,3762.5,3762.1,0.4571]
[1760694047325,2.65794859,3762.3,3762.0,0.2272]
[1760694047520,1.728,3762.4,3762.0,0.2272]
[1760694047887,2.83539751,3762.3,3762.0,0.2272]
[1760694048024,2.65799346,3762.3,3762.0,0.2272]
[1760694048223,2.65804378,3762.2,3762.0,0.2272]
[1760694048419,2.65796789,3762.3,3762.0,0.2272]
[1760694048718,1.728,3762.4,3762.0,0.2272]
[1760694048949,2.65795418,3762.3,3762.0,0.2272]
[1760694049137,1.77433238,3762.5,3762.0,0.2272]
[1760694049349,0.04633238,3762.5,3762.1,0.4571]
[1760694049549,1.77433238,3762.5,3762.2,0.4571]
[1760694049871,0.04633238,3762.5,3762.3,0.4571]
[1760694050071,0.04633238,3762.5,3762.0,2.88535254]
[1760694050258,0.04633238,3762.5,3762.4,0.4571]
[1760694051054,0.04633238,3762.5,3762.1,2.65807778]
[1760694051256,0.04633238,3762.5,3762.0,0.2272]
[1760694051257,0.04633238,3762.5,3762.4,0.4571]
[1760694053023,0.04633238,3762.5,3762.0,0.2272]
[1760694053228,2.65794722,3762.4,3761.8,0.6788]
[1760694053429,2.65806731,3762.2,3761.8,0.6788]
[1760694053675,2.65794498,3762.4,3762.1,0.2291]
[1760694053828,2.70414988,3762.5,3762.1,0.2291]
[1760694053829,2.65796729,3762.3,3762.1,0.2291]
[1760694054154,2.65820301,3762.0,3761.8,0.2272]
[1760694054360,2.65811196,3762.1,3761.8,0.2272]
[1760694054558,0.04633238,3762.5,3762.0,0.001]
[1760694054763,0.04633238,3762.5,3762.1,0.4516]
[1760694054961,0.002,3764.2,3762.4,2.65783375]
[1760694055147,0.002,3764.2,3762.5,0.4516]
[1760694055148,0.04632736,3762.9,3762.5,0.4516]
[1760694055348,0.04632736,3762.9,3762.3,2.65788989]
[1760694055650,2.65743798,3763.1,3762.6,0.4516]
[1760694055850,2.65749559,3763.0,3762.0,2.65912236]
[1760694056071,2.65757552,3762.9,3762.2,2.65801924]
[1760694056263,2.65737024,3763.2,3762.4,2.65787655]
[1760694056439,2.65738354,3763.1,3762.5,0.4516]
[1760694056643,0.6336,3763.6,3762.5,0.4516]
[1760694056951,2.65746081,3763.0,3762.5,0.4516]
[1760694057146,2.6575284,3762.9,3762.6,0.4516]
[1760694057348,2.65748126,3763.0,3762.6,0.4516]